Cogmind - Beta 9.2 @@@ ROGUE MODE // 2019.12.11 @ 14:21:41 Player: Cassie Rose Result: Self-destructed Performance ------------- Evolutions (2) 1000 Regions Visited (4) 800 Robots Destroyed (40) 200 Value Destroyed (1201) 1201 Prototype IDs (0) 0 Alien Tech Used (0) 0 Bonus (719) 719 TOTAL SCORE: 3920 Bonus ------- High Alert Combat Kills 19 Entered Garrisons 200 Used RIF Installer 500 Cogmind --------- Core Integrity 34/550 Matter 253/300 Energy 400/400 System Corruption 0% Temperature Cool (0) Movement Core (50) Location -8/Garrison Parts ------- > --- POWER (2) -------- (None) > --- PROPULSION (3) --- (None) > --- UTILITY (4) ------ Medium Storage Unit Compact Battery Weight Redist. System > --- WEAPON (2) ------- (None) > --- INVENTORY (8) ---- (None) Peak State ------------ > --- POWER ------------ Light Nuclear Core > --- PROPULSION ------- Aluminum Leg Aluminum Leg > --- UTILITY ---------- Improved Heat Sink Medium Storage Unit Compact Battery Shield Generator > --- WEAPON ----------- Particle Gun Light Assault Rifle > --- INVENTORY -------- High-capacity Battery Weight Redist. System Light Armor Plating Heavy Assault Rifle [Rating: 17] Favorites ----------- Power Light Ion Engine Engine Light Ion Engine Power Core Light Nuclear Core Propulsion Compact Wheel Leg Aluminum Leg Wheel Compact Wheel Hover Unit Improved Hover Unit Utility Medium Storage Unit Device Improved Terrain Scanner Storage Medium Storage Unit Protection Medium Armor Plating Weapon Light Assault Rifle Energy Gun Particle Gun Energy Cannon Ion Cannon Ballistic Gun Light Assault Rifle Ballistic Cannon Improved Light Cannon Launcher Shock Bomb Launcher Build | -11 -10 -9 -8 -8 ------- Run | Scr Mat Mat Mat Gar Slots Evolved 4 | . . 2 2 . Power 1 | . . . 1 . Propulsion 1 | . . 1 . . Utility 2 | . . 1 1 . Weapon . | . . . . . Parts Attached 40 | 7 . 11 2 20 Power 4 | 1 . 2 . 1 Engine 3 | 1 . 2 . . Core 1 | . . . . 1 Reactor . | . . . . . Propulsion 7 | 3 . 1 . 3 Treads . | . . . . . Leg 2 | . . . . 2 Wheel 4 | 3 . 1 . . Hover 1 | . . . . 1 Flight . | . . . . . Utility 15 | 1 . 4 2 8 Device 8 | 1 . 2 1 4 Storage 4 | . . 2 . 2 Processor . | . . . . . Hackware . | . . . . . Protection 3 | . . . 1 2 Artifact . | . . . . . Weapon 14 | 2 . 4 . 8 Energy Gun 4 | 1 . . . 3 Energy Cannon 2 | . . 1 . 1 Ballistic Gun 5 | 1 . 1 . 3 Ballistic Cannon 1 | . . 1 . . Launcher 2 | . . 1 . 1 Special Weapon . | . . . . . Impact Weapon . | . . . . . Slashing Weapon . | . . . . . Piercing Weapon . | . . . . . Special Melee Weapon . | . . . . . Unidentified Prototypes . | . . . . . Parts Lost 28 | . . 4 . 24 Power 3 | . . 1 . 2 Propulsion 6 | . . 1 . 5 Utility 7 | . . . . 7 Weapon 12 | . . 2 . 10 Highest Loss Streak 9 | . . 2 . 9 Average Slot Usage (%) 75 | . 85 92 79 63 Engine 5 | . 14 11 9 1 Leg 2 | . . . . 4 Wheel 13 | . 28 30 18 3 Hover 1 | . . . . 2 Device 13 | . 14 12 9 14 Storage 16 | . . 16 18 17 Protection 1 | . . . 7 2 Energy Gun 5 | . 14 4 . 6 Ballistic Gun 4 | . 14 9 . 1 Ballistic Cannon 3 | . . 6 9 1 Launcher 4 | . . 1 9 5 Naked Turns . | . . . . . Heaviest Build 35 | 7 7 28 35 35 Greatest Support 44 | 32 32 44 28 28 Greatest Overweight (x) 8 | . . . 1 8 Average Overweight (x) . | . . . 1 2 Largest Inventory Capacity 8 | 4 4 8 8 8 Average Capacity 7 | 4 4 6 8 8 Most Carried 8 | 4 3 8 7 6 Average Carried 4 | 1 3 6 5 3 Final Capacity 8 | 4 4 8 8 8 Final Carried 7 | 3 3 7 6 . Class Distribution -------------------- 86% | Mutant 13% | Scavenger-Mutant Dominant Class ---------------- Mutant | -10/Materials Mutant | -9/Materials Mutant | -8/Materials Mutant | -8/Garrison Resources | -11 -10 -9 -8 -8 ----------- Run | Scr Mat Mat Mat Gar Matter Collected 885 | 276 8 204 . 397 Remotely . | . . . . . Salvage Created 1409 | 131 51 615 27 585 Parts 87 | 14 7 39 2 25 Haulers Intercepted 1 | . . 1 . . Recyclers Shooed . | . . . . . Parts Field Recycled . | . . . . . Retrieved Matter . | . . . . . Parts Self-Destructed . | . . . . . Prevented . | . . . . . Kills | -11 -10 -9 -8 -8 ------- Run | Scr Mat Mat Mat Gar Combat Hostiles Destroyed 33 | . 3 14 1 15 Melee 1 | . . . . 1 Guns 10 | . 3 1 . 6 Cannons 11 | . . 10 . 1 AOE 10 | . . 3 1 6 Classes Destroyed 8 | 2 1 4 . 1 Tunneler 3 | 3 . . . . Hauler 1 | . . 1 . . Recycler 2 | 1 . 1 . . Watcher 1 | . . 1 . . Swarmer 10 | . 3 3 . 4 Grunt 15 | . . 6 1 8 Sentry 6 | . . 5 . 1 Hunter 2 | . . . . 2 Best Kill Streak 7 | 4 3 7 1 3 Combat Bots Only 6 | . 3 6 1 3 Max Kills in Single Turn 3 | 1 1 3 1 2 Gunslinging . | . . . . . Exploded 3 | . . 3 1 2 Melee 1 | . . . . 1 Uniques/NPCs Destroyed . | . . . . . Combat | -11 -10 -9 -8 -8 -------- Run | Scr Mat Mat Mat Gar Damage Taken 2816 | . 56 561 74 2125 Core 656 | . . 140 . 516 Absorbed by Shields 82 | . . . . 82 Core Remaining (%) 88 | 100 100 65 . . Volleys Fired 128 | 9 5 33 1 80 Largest 2 | 2 2 2 2 2 Hottest 130 | 60 60 99 75 130 Shots Fired 216 | 18 10 62 2 124 Gun 143 | 18 10 34 . 81 Cannon 53 | . . 26 1 26 Launcher 20 | . . 2 1 17 Special . | . . . . . Kinetic 117 | 9 5 49 1 53 Thermal 56 | . . 2 . 54 Explosive 8 | . . 2 1 5 Electromagnetic 35 | 9 5 9 . 12 Robot Hit Streak 14 | 4 4 14 3 13 Robot Miss Streak 4 | 2 1 4 1 4 Penetration Max . | . . . . . Secondary Targets 3 | . 2 . . 1 Max Gunslinging Chain 1 | . 1 . . 1 Shots Hit Robots 142 | 11 7 45 1 78 Core Hits 66 | 5 4 23 1 33 Critical Hits 3 | . . 2 . 1 Critical Kills 1 | . . 1 . . Critical Parts Destroyed 2 | . . 1 . 1 Melee Attacks . | . . . . . Impact . | . . . . . Slashing . | . . . . . Piercing . | . . . . . Sneak Attacks . | . . . . . Combat Hostiles . | . . . . . Follow-up Attacks . | . . . . . Damage Inflicted 2879 | 142 57 929 76 1675 Guns 1172 | 118 57 260 . 737 Cannons 617 | . . 348 20 249 Explosions 1083 | 24 . 315 56 688 Melee . | . . . . . Ramming 7 | . . 6 . 1 Kinetic 1051 | 29 24 493 20 485 Thermal 548 | 24 . 23 . 501 Explosive 579 | . . 315 56 208 Electromagnetic 694 | 89 33 92 . 480 Impact . | . . . . . Slashing . | . . . . . Piercing . | . . . . . Highest Corruption . | . . . . . Average Corruption . | . . . . . Corruption Purged . | . . . . . Overload Shots . | . . . . . Overflow Damage 56 | . . 12 . 44 Projectiles 22 | . . . . 22 Explosions 34 | . . 12 . 22 Melee . | . . . . . Knockbacks 4 | . . 2 . 2 Impact . | . . . . . Kinetic 4 | . . 2 . 2 Secondary . | . . . . . Self-Inflicted Damage 117 | . . 79 . 38 Shots 5 | . . 2 . 3 Rammed 2 | . . 1 . 1 Targets Rammed 2 | . . 1 . 1 Kicked . | . . . . . Crushed . | . . . . . Highest Temperature 105 | 40 20 76 15 105 Average Temperature 19 | 23 15 17 7 21 Received Heat Transfer 885 | . . 183 45 657 Siege Activations . | . . . . . Robots Corrupted 1 | . . . . 1 Combat Hostiles 1 | . . . . 1 Parts Fried 1 | 1 . . . . Impact Corruptions . | . . . . . Robots Melted . | . . . . . Combat Hostiles . | . . . . . Parts Melted 2 | . . . . 2 Heat Transferred 1197 | 50 . 37 . 1110 Parts Sabotaged . | . . . . . Parts Stolen . | . . . . . Parts Stripped . | . . . . . Power Chain Reactions 2 | 1 . . . 1 Missiles Intercepted . | . . . . . Alert | -11 -10 -9 -8 -8 ------- Run | Scr Mat Mat Mat Gar Peak Influence 514 | 20 128 397 131 514 Average Influence 217 | 5 66 120 107 310 Maximum Alert Level 2 | . . 1 . 2 Low Security (%) 55 | 100 100 80 100 30 Level 1 27 | . . 19 . 37 Level 2 17 | . . . . 31 Level 3 . | . . . . . Level 4 . | . . . . . Level 5 . | . . . . . High Security . | . . . . . Max Security . | . . . . . Squads Dispatched 2 | . . 1 1 . Investigation 1 | . . 1 . . Extermination . | . . . . . Reinforcement . | . . . . . Assault . | . . . . . Garrison 1 | . . . 1 . Intercept . | . . . . . Construction Impeded . | . . . . . Haulers Reinforced . | . . . . . Stealth | -11 -10 -9 -8 -8 --------- Run | Scr Mat Mat Mat Gar Distress Signals 2 | . . 2 . . Communications Jammed . | . . . . . Distress Signals . | . . . . . Times Spotted 47 | . 5 21 2 19 Peak Tracking Total 7 | . 4 7 1 4 Tactical Retreats 7 | . . 3 . 4 Traps | -11 -10 -9 -8 -8 ------- Run | Scr Mat Mat Mat Gar Traps Triggered 10 | . . 1 . 9 Indirectly 2 | . . . . 2 Trap Hack Attempts . | . . . . . Triggered . | . . . . . Disarmed . | . . . . . Reprogrammed . | . . . . . Reused . | . . . . . Traps Extracted . | . . . . . Installed . | . . . . . Triggered 1 | . . . . 1 Machines | -11 -10 -9 -8 -8 ---------- Run | Scr Mat Mat Mat Gar Machines Disabled 3 | . 1 1 . 1 Max in Single Turn 1 | . 1 1 . 1 Machines Sabotaged . | . . . . . Garrisons Compromised . | . . . . . Overloaded Fab Kills . | . . . . . Fab Network Shutdowns . | . . . . . Hacking | -11 -10 -9 -8 -8 --------- Run | Scr Mat Mat Mat Gar Machines Accessed 1 | . . . 1 . Terminals . | . . . . . Fabricators . | . . . . . Repair Stations . | . . . . . Recycling Units . | . . . . . Scanalyzers . | . . . . . Garrison Access 1 | . . . 1 . Total Hacks 2 | . . . 2 . Successful 1 | . . . 1 . Failed 1 | . . . 1 . Catastrophic . | . . . . . Database Lockouts . | . . . . . Manual . | . . . . . Terminals . | . . . . . Fabricators . | . . . . . Repair Stations . | . . . . . Recycling Units . | . . . . . Scanalyzers . | . . . . . Garrison Access 2 | . . . 2 . Terminal Hacks . | . . . . . Fabricator Hacks . | . . . . . Repair Station Hacks . | . . . . . Recycling Unit Hacks . | . . . . . Scanalyzer . | . . . . . Garrison Access Hacks 1 | . . . 1 . Unlock Access 1 | . . . 1 . Unauthorized Hacks . | . . . . . Terminals . | . . . . . Fabricators . | . . . . . Repair Stations . | . . . . . Recycling Units . | . . . . . Scanalyzers . | . . . . . Garrison Access . | . . . . . Data Cores Recovered . | . . . . . Used . | . . . . . Hacking Detections 1 | . . . 1 . Full Trace Events . | . . . . . Feedback Events . | . . . . . Feedback Blocked . | . . . . . Robot Schematics Acquired . | . . . . . Robots Built . | . . . . . Matter . | . . . . . Time . | . . . . . Total Robot Build Rating . | . . . . . Part Schematics Acquired . | . . . . . Parts Built . | . . . . . Matter . | . . . . . Time . | . . . . . Total Part Build Rating . | . . . . . Parts Repaired . | . . . . . Time . | . . . . . Parts Recycled . | . . . . . Recycled Matter . | . . . . . Retrieved Matter . | . . . . . Retrieved Components . | . . . . . Parts Scanalyzed . | . . . . . Part Schematics Acquired . | . . . . . Parts Damaged . | . . . . . Bothacking | -11 -10 -9 -8 -8 ------------ Run | Scr Mat Mat Mat Gar Used RIF Installer 1 | . . . . 1 Robots Hacked . | . . . . . Non-combat . | . . . . . Combat . | . . . . . Robot Hacks Applied . | . . . . . Relay Couplers Released . | . . . . . Robots Rewired . | . . . . . Allies Hacked . | . . . . . Hacks Repelled . | . . . . . Allies | -11 -10 -9 -8 -8 -------- Run | Scr Mat Mat Mat Gar Total Allies . | . . . . . Largest Group . | . . . . . Highest-Rated Group . | . . . . . Highest-Rated Ally . | . . . . . Total Orders . | . . . . . Ally Attacks . | . . . . . Total Damage . | . . . . . Kills . | . . . . . Allies Corrupted . | . . . . . Allies Melted . | . . . . . Intel | -11 -10 -9 -8 -8 ------- Run | Scr Mat Mat Mat Gar Robot Analysis Total . | . . . . . Derelict Logs Recovered . | . . . . . Drone Launches . | . . . . . Drone Recoveries . | . . . . . Exploration | -11 -10 -9 -8 -8 ------------- Run | Scr Mat Mat Mat Gar Turns Passed 2425 | 122 104 801 61 1337 Spaces Moved 1367 | 89 88 550 51 589 Core 84 | 9 . . . 75 Treads . | . . . . . Legs 144 | . . . . 144 Wheels 952 | 80 88 550 51 183 Hover 187 | . . . . 187 Flight . | . . . . . Fastest Speed 50 | 50 100 95 105 50 Average Speed 129 | 89 100 96 105 173 Slowest Speed 450 | 100 100 100 105 450 Overloaded Moves . | . . . . . Propulsion Burnouts . | . . . . . Robots Hopped . | . . . . . Cave-ins Triggered . | . . . . . Exploration Rate (%) 26 | 6 26 35 7 58 Regions Visited 4 Branch Regions . Pre-discovered Areas . | . . . . . Known Exits Taken 1 | . . . 1 . Unknown Exits Taken 3 | 1 1 1 . . Scrap Searched . | . . . . . Spaces Dug . | . . . . . Terrain Destroyed 35 | 3 . 8 7 17 Melee . | . . . . . Projectile 1 | . . 1 . . AOE 34 | 3 . 7 7 17 Actions | -11 -10 -9 -8 -8 --------- Run | Scr Mat Mat Mat Gar Total 1808 | 115 95 765 56 777 Wait 167 | . 3 152 . 12 Move 1364 | 88 87 549 51 589 Hop . | . . . . . Pick Up 38 | 10 . 13 1 14 Fast Attach 2 | . . 2 . . Attach 31 | 6 . 6 1 18 Detach . | . . . . . Swap 7 | 1 . 3 1 2 Drop 10 | 1 . 6 1 2 Fire 128 | 9 5 33 1 80 Melee . | . . . . . Ram 2 | . . 1 . 1 Kick . | . . . . . Crush . | . . . . . Escape Stasis 59 | . . . . 59 Rewire . | . . . . . Trap . | . . . . . Miscellaneous . | . . . . . Route ------- -11/Scrapyard -10/Materials -9/Materials -8/Materials -8/Garrison (discovered 2 exits: [*Mat x2]) History --------- Turn | Location | Event 19 | -11/Scrapyard | Discovered new exit (range 15) 123 | -11/Scrapyard | Entered Materials 211 | -10/Materials | Discovered new exit (range 16) 227 | -10/Materials | Entered another Materials area 227 | -9/Materials | Evolved 2 slots: Propulsion x1, Utility x1 318 | -9/Materials | Build established: Mutant 1001 | -9/Materials | Discovered new exit (range 14) 1028 | -9/Materials | Entered another Materials area 1028 | -8/Materials | Evolved 2 slots: Power x1, Utility x1 1080 | -8/Materials | Garrison activated, responded to threat 1089 | -8/Materials | Identified exit to Garrison 1089 | -8/Materials | Entered Garrison 1146 | -8/Garrison | Triggered checkpoint 1223 | -8/Garrison | Triggered checkpoint 1238 | -8/Garrison | Triggered checkpoint 1294 | -8/Garrison | Lost 5 parts (1p1n1u2w) 1364 | -8/Garrison | Triggered checkpoint 1715 | -8/Garrison | Discovered new exit (range 12) 1956 | -8/Garrison | Triggered checkpoint 2001 | -8/Garrison | Core integrity fell below 50% 2015 | -8/Garrison | Lost 5 parts (1n1u3w) 2236 | -8/Garrison | Discovered new exit (range 9) 2263 | -8/Garrison | Installed Relay Interface Framework 2345 | -8/Garrison | Spotted B-75 Beast 2393 | -8/Garrison | Build established: Scavenger-Mutant 2406 | -8/Garrison | Core integrity fell below 20% 2426 | -8/Garrison | Self-destructed Last Messages --------------- 02334_ Dropped Hcp. Battery. 02335_ Extracted 6 energy. 02335_ Extracted 4 energy. 02336_ Acquired Com. Battery. 02345_ Triggered Alarm Trap. 02345_ An alarm sounds. 02350_ Knocked back. 02353_ Shield Generator destroyed. 02384_ Knocked back. 02389_ Emergency Access malfunctions. 02391_ Knocked back. 02394_ Imp. Heat Sink destroyed. 02397_ Particle Gun destroyed. 02397_ Com. Battery destroyed. 02402_ Lgt. Assault Rifle destroyed. 02405_ Aluminum Leg destroyed. 02414_ Lgt. Nuclear Core destroyed. 02419_ Lgt. Armor Plating destroyed. 02425_ Aluminum Leg destroyed. 02425_ Hvy. Assault Rifle destroyed. Map ----- +----------------------------------------------------+ | ????????????###########??????????????????????????? | | ???#????????# !^^%#??????????????????????????? | | ????????????# #??????????????????????????? | | ????????????# ###% %###??######??????????????????? | | ???????#????# #?# % #?????#"""#??????????????????? | | ????????????# #?#####?????#" "#??????????????????? | | ????????#???# #????#??????#" "#??????????????????? | | ???????###### #???????????#" "#??????????????????? | | ?#?#???# #???????????## ##??????????????????? | | ???????#!!!## #??????????## #??????????????????? | | ???????###### #???######### < #??????????????????? | | ???????# +???# #??????????????????? | | ??#????#!!!##=#??## #?#????????????????? | | ???????######%#?#?# ##########??????????????????? | | ???????# %=#???# #?# #???????????????????????? | | ?#?????#!!!##%#?#?# ### #???????????????????????? | | ???????######=##### #?# #???????????????????????? | | ????????????#%### # ### #???????????????????????? | | ???#??#??##?# =! " #???????????????????????? | | ?????????#??#######%!######??????????????????????? | | ???#??????????????# #???????????????????????????? | | ???????##???#?????# #???????????????????????????? | | #??#??????????????# #????###????####????????????? | | #??#???############ ######;######!!#????????????? | | #?????## #????????????? | | ###????# @ #????????????? | | #???#### ######### #######;BB;/#! #????????????? | | #?#?? ?# #???????# #?????# " ####????????????? | | #???? ?# #???????# #?????# + #???????????????? | | #??????# ##??????# #?????#### #???????????????? | | ######## #???????# #????????# #???????????????? | | ## ## #???????# #????????# #???????????????? | | ## ## ##?##?### #?#?????? ???????????????? | | ! ####???# #???????? ??????????????? | | #??????? !?????????????? | | +???? ?? #????????????? | | ## ###########???????!! !!!#????????????? | | ## ^^^## #??????#?????????#########????????????? | | "?????????????????????????????????????? | | "?????????????????????????????????????? | | "?????????????????????????????????????? | | "?????????????????????????????????????? | | ## ## #?????????????????????????????????????? | | ## ## ##??????#?????????????????????????????? | | ???????????????????????????????????? | | ???????????????????????????????????? | | ###???????????????????????????????????? | | ##""""## ##?????????????????????????????????????? | | #??????? #??????????????????????????????????????? | | #?????#??????????????????????????????????????????? | +----------------------------------------------------+ Best States ------------- Heat Dissipation 45 Energy Generation 14 Energy Capacity 650 Matter Stores 300 Matter Capacity 300 Sight Range 16 Terrain Scan Range 16 Terrain Scan Density 10 Additional Mass Support 6 Armor Coverage 225 Evasion (%) 50 Item Schematics ----------------- None Robot Schematics ------------------ None Fabricated ------------ Nothing Alien Tech Used ----------------- None Achievements -------------- Dramatic Entrance Challenges ------------ None Game ------ Seed StorageAssembledAxe Manual? 0 Play Time 00:24:42 Cumulative 55.5 hours Start 2019.12.11 @ 13:58:31 End 2019.12.11 @ 14:21:41 Sessions 1 Manual Loads 0 Difficulty Rogue Special Mode None Game No. 88 Rogue 88 Adventurer 0 Explorer 0 Win Type - Total 0 Types 0/0/0/0/0/0/0 Lore% 22 Gallery% 25 Achievement% 23 Wizard Run 0 Options --------- ASCII 0 Keyboard 0 Movement Arrows Keybinds 0 Fullscreen 1 Font 18/SmallcapsGlow Map View 76x50 Tactical HUD 1 Map Filters NONE Filters LOW_CONTRAST(13,24,33)|BRIGHTNESS(120)|SATURATION(80) Steam 1 RUN: 6dbe40a9-6dd4-44a3-b75f-521f2a044b2c